bitfinex-derivatives/quotes_BTCF0:USTF0_20241125
["timestamp","ask_amount","ask_price","bid_price","bid_amount"]
[1732547650550,0.052544,95152.0,95110.0,1.028808]
[1732547650551,0.3608,95179.0,95151.0,0.3608]
[1732547650714,0.052536,95168.0,95156.0,0.052542]
[1732547650913,0.052538,95163.0,95151.0,0.3608]
[1732547651222,0.0210654,95169.0,95164.0,0.052538]
[1732547651413,0.0210654,95169.0,95161.0,0.3608]
[1732547651414,0.00010246,95168.0,95161.0,0.3608]
[1732547652116,0.00010246,95168.0,95167.0,0.052536]
[1732547652910,0.00010246,95168.0,95167.0,0.367776]
[1732547653105,0.00010246,95168.0,95167.0,0.052536]
[1732547653307,0.4864,95204.0,95185.0,0.3608]
[1732547653755,0.4864,95204.0,95173.0,0.3608]
[1732547653756,0.3608,95248.0,95203.0,0.7216]
[1732547653757,0.4864,95213.0,95203.0,0.7216]
[1732547653945,0.4864,95219.0,95212.0,0.3608]
[1732547654233,0.4864,95227.0,95218.0,0.3608]
[1732547654319,0.3608,95275.0,95218.0,0.3608]
[1732547654320,0.05249,95251.0,95226.0,0.3608]
[1732547654511,0.05249,95251.0,95250.0,0.7216]
[1732547654712,0.667536,95251.0,95250.0,0.7216]
[1732547655019,0.33609284,95251.0,95250.0,0.7216]
[1732547655317,0.615046,95251.0,95250.0,0.7216]
[1732547655519,0.052498,95236.0,95235.0,0.3608]
[1732547655916,0.667498,95236.0,95235.0,0.3608]
[1732547656111,0.315,95236.0,95235.0,0.3608]
[1732547656323,8.6e-05,95251.0,95235.0,0.3608]
[1732547656324,0.002086,95251.0,95250.0,0.002]
[1732547656515,0.002086,95251.0,95250.0,0.3628]
[1732547656845,0.02104684,95283.0,95250.0,1.03856]
[1732547657065,0.02104684,95283.0,95282.0,0.3608]
[1732547657217,0.48616,95298.0,95274.0,0.3608]
[1732547657414,0.48616,95298.0,95297.0,0.3608]
[1732547657415,0.538624,95298.0,95297.0,0.3608]
[1732547657721,0.052472,95283.0,95282.0,0.3608]
[1732547657922,1.10107191,95298.0,95250.0,0.002]
[1732547657923,0.052475,95278.0,95277.0,0.3608]
[1732547658418,0.367355,95278.0,95277.0,0.3608]
[1732547659309,0.052475,95278.0,95277.0,0.3618]
[1732547659515,0.00839,95279.0,95277.0,0.3618]
[1732547659720,0.00839,95279.0,95278.0,0.3608]
[1732547659923,0.02634191,95298.0,95278.0,0.3608]
[1732547660293,0.02634191,95298.0,95297.0,0.7216]
[1732547660622,0.48664,95320.0,95298.0,0.052464]
[1732547660821,0.48664,95320.0,95276.0,0.0210322]
[1732547660822,0.48664,95320.0,94983.0,1.2537273]
[1732547661019,3.54927039,95219.0,95218.0,0.052508]
[1732547661214,2.65544579,95219.0,95218.0,0.774108]
[1732547661426,2.18114579,95219.0,95218.0,0.6969122]
[1732547661827,2.18114579,95219.0,95218.0,0.00011663]
[1732547661959,1.21504146,95173.0,95170.0,0.26186626]
[1732547662121,4.3e-07,95173.0,95172.0,0.052533]
[1732547662324,0.3608,95219.0,95218.0,0.061508]
[1732547662522,0.3608,95219.0,95218.0,0.070508]
[1732547662837,0.3608,95239.0,95238.0,0.052497]
[1732547663130,0.7216,95239.0,95220.0,0.052506]
[1732547663322,0.3608,95221.0,95220.0,0.052506]
[1732547663831,0.3608,95239.0,95237.0,0.052497]
[1732547664020,0.00011772,95257.0,95256.0,0.052487]
[1732547664421,0.00011772,95257.0,95251.0,0.05249]
[1732547664616,0.00011772,95257.0,95255.0,0.052487]
[1732547665318,0.052479,95271.0,95256.0,0.3608]
[1732547665552,0.3608,95259.0,95238.0,0.00096]
[1732547665825,0.14564274,95249.0,95247.0,0.052492]
[1732547666028,0.3608,95250.0,95236.0,0.30157534]
[1732547666230,0.14564686,95255.0,95251.0,0.05249]
[1732547666534,0.14564686,95255.0,95248.0,0.02102478]
[1732547666535,0.002,95257.0,95255.0,0.31496]
[1732547666734,0.002,95257.0,95254.0,0.6608]
[1732547666735,0.08736972,95261.0,95256.0,0.3608]
[1732547666935,0.3608,95273.0,95256.0,0.35241]
[1732547666936,0.08736972,95266.0,95256.0,0.35241]
[1732547667122,0.02704572,95266.0,95264.0,0.052483]
[1732547667424,0.3608,95273.0,95272.0,0.052478]
[1732547667929,7.763e-05,95280.0,95279.0,0.052474]
[1732547668551,0.001,95299.0,95279.0,0.667354]
[1732547668920,0.3608,95314.0,95313.0,0.052456]
[1732547668924,0.17477215,95342.0,95313.0,0.052456]
[1732547668925,0.11649296,95332.0,95329.0,0.052447]
[1732547669122,0.3608,95337.0,95325.0,0.3608]
[1732547669338,0.3608,95337.0,95336.0,0.052443]
[1732547669563,0.48624,95338.0,95336.0,0.05257348]
[1732547669741,0.48556,95338.0,95336.0,0.05257348]
[1732547669923,0.00012409,95350.0,95336.0,0.00013048]
[1732547670323,0.00012409,95350.0,95346.0,0.052437]
[1732547670534,0.3608,95347.0,95325.0,0.001]
[1732547670830,0.052437,95346.0,95325.0,0.001]
[1732547671032,0.052437,95346.0,95338.0,0.052442]
[1732547671234,0.3608,95339.0,95325.0,0.001]
[1732547671429,0.3608,95334.0,95325.0,0.301]
[1732547671628,0.3608,95347.0,95344.0,0.052438]
[1732547671832,0.99128,95347.0,95332.0,0.3608]
[1732547672052,0.3608,95336.0,95326.0,0.0001349]
[1732547672349,0.3608,95336.0,95313.0,0.00157387]
[1732547672350,0.63048,95326.0,95313.0,0.00157387]
[1732547672568,0.63048,95326.0,95280.0,0.25788663]
[1732547672569,0.3608,95314.0,95280.0,0.25788663]
[1732547672725,0.3608,95314.0,95300.0,0.3608]
[1732547672929,0.00072,95317.0,95313.0,0.3608]
[1732547673229,0.3608,95330.0,95314.0,0.00012363]
[1732547673431,0.80536,95335.0,95332.0,0.052445]
[1732547673634,0.00068,95335.0,95330.0,0.052446]
[1732547673832,0.007,95338.0,95336.0,0.001]
[1732547674232,0.3608,95349.0,95326.0,0.001]
[1732547674533,0.007,95330.0,95326.0,0.001]
[1732547674736,0.007,95330.0,95329.0,0.05091716]
[1732547675241,0.007,95330.0,95318.0,0.3608]
[1732547675242,0.052449,95325.0,95314.0,0.00012363]
[1732547675557,0.48532,95330.0,95314.0,0.00012363]
[1732547675558,0.63048,95316.0,95314.0,0.00012363]
[1732547675835,0.78600043,95330.0,95314.0,0.00012363]
[1732547675836,0.682935,95315.0,95314.0,0.00012363]
[1732547676235,0.98293543,95315.0,95314.0,0.00012363]
[1732547676434,0.052455,95315.0,95314.0,8.37e-06]
[1732547676632,0.00068,95320.0,95314.0,8.37e-06]
[1732547676842,0.3608,95320.0,95314.0,8.37e-06]
[1732547677036,0.3608,95320.0,95318.0,0.052453]
[1732547677235,0.3608,95320.0,95314.0,8.37e-06]
[1732547677236,0.38181,95320.0,95319.0,0.00853208]
[1732547677436,0.052455,95315.0,95314.0,8.37e-06]
[1732547677649,0.052469,95290.0,95287.0,0.00093764]
[1732547677938,0.3608,95292.0,95286.0,0.00093764]
[1732547678130,0.3608,95292.0,95284.0,0.052472]
[1732547678328,0.3608,95304.0,95278.0,0.00157389]
[1732547678329,0.013,95315.0,95294.0,0.052466]
[1732547678540,0.013,95315.0,95278.0,0.32257214]
[1732547678541,0.013,95315.0,95300.0,0.25788663]
[1732547678856,0.16718,95313.0,95300.0,0.052462]
[1732547679041,0.16718,95301.0,95295.0,8.397e-05]
[1732547679224,0.16718,95305.0,95295.0,8.397e-05]
[1732547679432,0.219645,95296.0,95295.0,8.397e-05]
[1732547679628,0.052465,95296.0,95295.0,8.397e-05]
[1732547679835,0.671,95304.0,95295.0,8.397e-05]
[1732547679836,0.67168,95304.0,95295.0,8.397e-05]
[1732547680134,0.671,95304.0,95298.0,0.052464]
[1732547680332,0.671,95304.0,95295.0,8.397e-05]
[1732547680538,0.671,95304.0,95281.0,0.052473]
[1732547680539,0.83818,95304.0,95281.0,0.052473]
[1732547680734,0.008,95296.0,95295.0,0.052466]
[1732547680942,0.13750296,95320.0,95305.0,0.05246]
[1732547681125,0.02101,95320.0,95318.0,0.052453]
[1732547681530,0.02101,95320.0,95319.0,0.00010723]
[1732547682160,0.02101,95320.0,95319.0,0.67562723]
[1732547682439,0.02101,95320.0,95319.0,0.31482723]
[1732547682643,0.00584,95321.0,95319.0,0.31482723]
[1732547682644,0.00584,95321.0,95320.0,0.052452]
[1732547682936,0.00213123,95321.0,95320.0,0.367172]
[1732547683136,2.3e-07,95321.0,95320.0,0.667172]
[1732547683853,2.3e-07,95321.0,95320.0,0.052452]
[1732547684030,2.3e-07,95321.0,95320.0,0.367172]
[1732547684327,0.16718,95331.0,95329.0,0.052447]
[1732547684734,0.11913457,95333.0,95326.0,0.3608]
[1732547684935,0.11913457,95335.0,95334.0,0.052444]
[1732547685237,0.11913457,95337.0,95336.0,0.052443]
[1732547685440,0.11912715,95337.0,95322.0,0.05245]
[1732547685715,0.48596,95340.0,95320.0,0.001]
[1732547685716,0.11912715,95339.0,95327.0,0.3608]
[1732547685826,0.11912715,95339.0,95323.0,0.05245]
[1732547685827,0.48588,95340.0,95339.0,0.052441]
[1732547686138,0.65306,95340.0,95320.0,0.002]
[1732547686443,0.65306,95340.0,95326.0,0.052448]
[1732547686444,0.16718,95327.0,95326.0,0.052448]
[1732547686631,0.11912548,95327.0,95309.0,0.0015739]
[1732547686834,0.11912548,95327.0,95281.0,0.37374328]
[1732547686835,0.88878,95310.0,95281.0,0.3608]
[1732547687042,0.48508,95309.0,95293.0,0.052467]
[1732547687342,0.16718,95294.0,95293.0,0.052467]
[1732547687636,0.78508043,95309.0,95293.0,7.59e-05]
[1732547687829,0.3608,95301.0,95300.0,0.052463]
[1732547688229,0.16718,95301.0,95293.0,7.59e-05]
[1732547688439,0.11912321,95315.0,95293.0,7.59e-05]
[1732547688743,0.11912321,95318.0,95316.0,0.052454]
[1732547688950,0.11531569,95350.0,95316.0,0.052454]
[1732547688951,0.06543,95317.0,95316.0,0.052454]
[1732547689332,0.01535321,95323.0,95322.0,0.052451]
[1732547689538,0.14911203,95332.0,95331.0,0.052446]
[1732547689730,0.14911203,95332.0,95331.0,0.00328087]
[1732547689929,0.14911203,95332.0,95331.0,0.05572687]
[1732547690250,0.14911203,95332.0,95331.0,0.052446]
[1732547690251,0.44911246,95332.0,95331.0,0.052446]
[1732547690465,0.31998946,95332.0,95331.0,0.413246]
[1732547690735,0.31998946,95332.0,95318.0,0.052453]
[1732547690937,0.32698946,95332.0,95331.0,0.053446]
[1732547691139,0.64166946,95332.0,95311.0,0.00157381]
[1732547691340,0.64166946,95332.0,95321.0,0.052451]
[1732547691341,0.3233,95331.0,95321.0,0.052451]
[1732547691544,0.3233,95331.0,95293.0,7.59e-05]
[1732547691545,0.3608,95327.0,95293.0,7.59e-05]
[1732547691849,0.3608,95327.0,95324.0,0.052449]
[1732547691850,0.80838,95326.0,95324.0,0.052449]
[1732547692035,0.80838,95326.0,95300.0,0.001]
[1732547692036,0.80838,95326.0,95305.0,0.3608]
[1732547692255,0.80838,95326.0,95324.0,0.052449]
[1732547692256,1.10838043,95326.0,95324.0,0.052449]
[1732547692540,0.55435943,95326.0,95324.0,0.052449]
[1732547692843,0.17477215,95345.0,95324.0,0.052449]
[1732547692844,0.48508,95349.0,95331.0,0.052446]
[1732547693039,0.00012409,95350.0,95348.0,0.413236]
[1732547693238,0.48564001,95364.0,95348.0,0.413236]
[1732547693239,0.48508,95364.0,95363.0,0.052428]
[1732547693441,0.68373843,95364.0,95363.0,0.052428]
[1732547694347,0.68383466,95364.0,95363.0,9.367e-05]
[1732547694532,0.68383466,95364.0,95357.0,0.3608]
[1732547694533,0.3146,95363.0,95339.0,0.16214157]
[1732547694733,0.3146,95363.0,95310.0,0.19069356]
[1732547694734,0.7216,95340.0,95310.0,0.19069356]
[1732547695042,0.3608,95312.0,95311.0,0.06059285]
[1732547695237,0.3608,95312.0,95311.0,0.052457]
[1732547695438,0.3609162,95312.0,95311.0,0.052457]
[1732547696431,0.2609162,95312.0,95311.0,0.052457]
[1732547696644,0.0031162,95312.0,95311.0,0.052457]
[1732547696839,2e-07,95312.0,95311.0,0.052457]
[1732547697240,0.291137,95321.0,95320.0,0.052452]
[1732547697847,0.34227125,95321.0,95320.0,0.052452]
[1732547698041,0.34227154,95321.0,95320.0,0.052452]
[1732547699045,0.34927154,95321.0,95320.0,0.053452]
[1732547699440,0.29823499,95321.0,95320.0,0.053452]
[1732547700155,0.28503499,95321.0,95320.0,0.053452]
[1732547700450,0.28503499,95321.0,95320.0,0.001]
[1732547700451,0.65220599,95321.0,95320.0,0.001]
[1732547700641,1.11856178,95321.0,95273.0,0.052478]
[1732547700944,1.11856178,95321.0,95293.0,0.05255525]
[1732547700945,0.7216,95294.0,95293.0,0.05255525]
[1732547701258,0.7216,95294.0,95265.0,0.052482]
[1732547701259,0.77264397,95294.0,95265.0,0.052482]
[1732547701499,0.17477215,95298.0,95265.0,0.052482]
[1732547701500,0.3608,95284.0,95275.0,0.252717]
[1732547701643,0.05104397,95293.0,95283.0,0.052472]
[1732547701848,0.12203312,95306.0,95292.0,0.052467]
[1732547702152,0.00609799,95321.0,95320.0,0.052452]
[1732547702346,0.3608,95323.0,95302.0,0.3608]
[1732547702347,0.30912599,95323.0,95322.0,0.052451]
[1732547702541,0.30912599,95323.0,95322.0,0.00328118]
[1732547702542,0.3608,95323.0,95322.0,0.00328118]
[1732547702734,0.052453,95319.0,95309.0,0.052458]
[1732547702942,0.67552,95323.0,95302.0,0.00157368]
[1732547702943,0.3608,95310.0,95302.0,0.00157368]
[1732547703137,0.052465,95296.0,95275.0,0.20120084]
[1732547703446,0.3608,95284.0,95276.0,0.01181444]
[1732547703643,0.052473,95281.0,95277.0,0.01181444]
[1732547703845,0.052476,95276.0,95275.0,0.20120084]
[1732547704038,0.052476,95276.0,95245.0,0.43092288]
[1732547704039,0.052481,95268.0,95258.0,0.052486]
[1732547704234,0.052469,95290.0,95245.0,0.43092288]
[1732547704235,0.052487,95257.0,95245.0,0.43092288]
[1732547704660,1.0177,95259.0,95245.0,0.43092288]
[1732547704661,0.3608,95246.0,95245.0,0.43092288]
[1732547704666,0.052494,95243.0,95232.0,0.00157534]
[1732547704848,0.3608,95240.0,95237.0,0.052497]
[1732547705048,0.3608,95240.0,95232.0,0.00157534]
[1732547705239,0.3608,95233.0,95218.0,0.60796919]
[1732547705448,0.3608,95219.0,95218.0,0.66047719]
[1732547705650,0.3608,95252.0,95218.0,0.66047719]
[1732547705942,0.3608,95242.0,95220.0,0.1928384]
[1732547706147,0.3608,95233.0,95232.0,0.0525]
[1732547706336,0.005,95240.0,95239.0,0.052496]
[1732547706537,0.3658,95240.0,95239.0,0.052496]
[1732547706732,0.3708,95240.0,95239.0,0.052496]
[1732547707147,0.3608,95252.0,95251.0,0.05249]
[1732547707340,0.00056001,95256.0,95255.0,0.052488]
[1732547707658,0.3608,95265.0,95264.0,0.052483]
[1732547707939,0.4852,95271.0,95266.0,0.052482]
[1732547708138,4.1e-07,95267.0,95266.0,0.052482]
[1732547708340,0.3608,95305.0,95283.0,0.052472]
[1732547708550,0.4852,95309.0,95308.0,0.052458]
[1732547708551,0.00056001,95309.0,95308.0,0.052458]
[1732547708855,0.02101803,95317.0,95316.0,0.052454]
[1732547709039,0.3608,95324.0,95322.0,0.052451]
[1732547709265,7.478e-05,95323.0,95322.0,0.052451]
[1732547710464,7.8e-07,95323.0,95322.0,0.052451]
[1732547710875,7.8e-07,95323.0,95320.0,0.00013502]
[1732547710876,0.31472078,95323.0,95320.0,0.00013502]
[1732547711067,0.31472078,95323.0,95296.0,0.00157417]
[1732547711068,0.3608,95321.0,95296.0,0.00157417]
[1732547711240,0.3608,95305.0,95296.0,0.00157417]
[1732547711437,0.3608,95305.0,95304.0,0.052461]
[1732547711751,0.002,95309.0,95308.0,0.052458]
[1732547712254,0.31676,95309.0,95302.0,0.00011001]
[1732547712547,0.3608,95304.0,95302.0,0.00011001]
[1732547712752,0.3608,95304.0,95302.0,0.05257201]
[1732547712939,0.3608,95316.0,95304.0,0.052461]
[1732547713139,0.3608,95316.0,95302.0,0.05257201]
[1732547713352,0.3608,95316.0,95315.0,0.052455]
[1732547713547,0.48520078,95323.0,95315.0,0.052455]
[1732547713858,0.48520078,95323.0,95322.0,0.052451]
[1732547714210,7.8e-07,95323.0,95322.0,0.052451]
[1732547714739,7.8e-07,95323.0,95302.0,0.00011001]
[1732547714740,0.052453,95319.0,95302.0,0.00011001]
[1732547714940,0.3608,95314.0,95302.0,0.00011001]
[1732547715144,0.48512,95313.0,95312.0,0.052456]
[1732547715344,0.47712,95313.0,95312.0,0.052456]
[1732547715654,0.79188,95313.0,95302.0,0.00011001]
[1732547715847,0.3608,95304.0,95302.0,0.00011001]
[1732547716041,0.3628,95304.0,95286.0,0.05247]
[1732547716247,0.3608,95300.0,95299.0,0.052463]
[1732547716642,0.3628,95304.0,95275.0,0.052476]
[1732547716870,0.002,95304.0,95302.0,0.052462]
[1732547717065,0.004,95316.0,95303.0,0.00013042]
[1732547717364,0.004,95316.0,95315.0,0.052455]
[1732547717655,0.004,95316.0,95308.0,0.3608]
[1732547717656,0.61876,95316.0,95303.0,0.00013042]
[1732547717848,0.3608,95304.0,95295.0,0.00157392]
[1732547718054,0.3608,95304.0,95295.0,0.05403892]
[1732547718055,0.3608,95296.0,95295.0,0.05403892]
[1732547718239,0.3608,95296.0,95287.0,0.05247]
[1732547718555,0.3608,95288.0,95265.0,0.052482]
[1732547718767,0.3608,95280.0,95252.0,0.0008]
[1732547719049,0.6608,95288.0,95286.0,0.05247]
[1732547719050,0.00056001,95288.0,95286.0,0.05247]
[1732547719255,0.48512,95291.0,95290.0,0.052468]
[1732547719562,0.48568001,95291.0,95290.0,0.052468]
[1732547719955,0.48512,95291.0,95290.0,0.052468]
[1732547720588,1.09996,95291.0,95273.0,0.052477]
[1732547720763,1.09996,95291.0,95270.0,0.00012958]
[1732547720764,0.052479,95271.0,95270.0,1e-08]
[1732547720953,0.352479,95271.0,95270.0,1e-08]
[1732547721167,0.667359,95271.0,95270.0,1e-08]
[1732547721669,0.3608,95274.0,95270.0,1e-08]
[1732547721951,0.8042707,95273.0,95270.0,1e-08]
[1732547722143,0.17942496,95271.0,95270.0,0.05247901]
[1732547722667,0.17942496,95286.0,95272.0,0.052478]
[1732547722855,0.3608,95289.0,95288.0,0.052469]
[1732547722856,0.10870944,95289.0,95288.0,0.052469]
[1732547723286,8.659e-05,95290.0,95288.0,0.052469]
[1732547723696,0.3608,95289.0,95288.0,0.052469]
[1732547723758,8.659e-05,95290.0,95288.0,0.413269]
[1732547725258,5.9e-07,95292.0,95291.0,0.052468]
[1732547725560,0.3608,95329.0,95308.0,0.052458]
[1732547725561,0.14953281,95310.0,95308.0,0.052458]
[1732547725764,0.14953281,95310.0,95288.0,0.6608]
[1732547725765,0.14953281,95319.0,95318.0,0.052453]
[1732547725948,0.14953281,95325.0,95323.0,0.05245]
[1732547726152,0.48572001,95338.0,95328.0,0.052447]
[1732547726153,0.14953281,95332.0,95328.0,0.052447]
[1732547726362,8.363e-05,95331.0,95329.0,0.052447]
[1732547726662,6.4e-07,95338.0,95337.0,0.052442]
[1732547726885,0.48516,95352.0,95337.0,0.052442]
[1732547726886,0.48516,95352.0,95337.0,0.3608]
[1732547727156,0.17942496,95356.0,95354.0,0.052433]
[1732547727373,0.17942496,95356.0,95351.0,0.3608]
[1732547727374,0.66510497,95374.0,95351.0,0.3608]
[1732547727565,0.00056001,95374.0,95373.0,0.052423]
[1732547727783,0.23303222,95398.0,95349.0,0.052436]
[1732547727784,0.48512,95383.0,95368.0,0.3608]
[1732547728060,5e-08,95374.0,95373.0,0.052423]
[1732547728558,0.61456005,95374.0,95364.0,0.00012417]
[1732547728753,5e-08,95374.0,95364.0,0.00012417]
[1732547729053,5e-08,95374.0,95373.0,0.052423]
[1732547729560,5e-08,95374.0,95373.0,0.727783]
[1732547730480,5e-08,95400.0,95399.0,0.052408]
[1732547730800,5e-08,95400.0,95399.0,0.774008]
[1732547731463,4.3e-07,95403.0,95402.0,0.052407]
[1732547733360,0.485,95437.0,95402.0,0.052407]
[1732547733557,0.485,95437.0,95426.0,0.052393]
[1732547733802,0.785,95437.0,95426.0,0.052393]
[1732547733960,0.31436,95436.0,95426.0,0.052393]
[1732547734167,0.31436,95436.0,95412.0,0.3608]
[1732547734496,0.3,95436.0,95430.0,0.052391]
[1732547734671,9.885e-05,95435.0,95420.0,0.3608]
[1732547734970,9.885e-05,95435.0,95432.0,0.05239]
[1732547736067,9.885e-05,95435.0,95420.0,0.3608]
[1732547736068,9.885e-05,95435.0,95421.0,0.052396]
[1732547736361,0.00409885,95435.0,95420.0,0.3608]
[1732547736668,0.00409885,95435.0,95433.0,0.052389]
[1732547736962,0.00409885,95435.0,95420.0,0.3608]
[1732547736963,0.31436,95434.0,95420.0,0.3608]
[1732547737262,0.31436,95434.0,95392.0,0.3608]
[1732547737263,0.3608,95421.0,95392.0,0.3608]
[1732547737491,0.05241,95396.0,95377.0,0.05242]
[1732547737659,7.678e-05,95420.0,95374.0,0.3608]
[1732547737660,0.3608,95389.0,95374.0,0.3608]
[1732547737959,0.48486625,95388.0,95374.0,0.052422]
[1732547738151,0.79938625,95388.0,95365.0,0.3608]
[1732547738356,0.02097535,95385.0,95365.0,0.3608]
[1732547738664,0.02097535,95385.0,95355.0,0.3608]
[1732547738665,0.48486625,95388.0,95355.0,0.3608]
[1732547738966,0.48486625,95388.0,95385.0,0.052416]
[1732547739676,0.00010625,95388.0,95385.0,0.052416]
[1732547739870,0.8456,95400.0,95382.0,0.3608]
[1732547739871,0.43003125,95400.0,95387.0,0.052415]
[1732547740053,0.43003125,95400.0,95399.0,0.413208]
[1732547740367,0.3608,95418.0,95417.0,0.052398]
[1732547740570,0.4848,95420.0,95417.0,0.052398]
[1732547740762,0.3608,95429.0,95428.0,0.052392]
[1732547740956,0.84570161,95429.0,95428.0,0.052392]
[1732547741166,0.48490161,95429.0,95428.0,0.052392]
[1732547741768,0.48490161,95429.0,95428.0,0.413192]
[1732547742531,0.00010161,95429.0,95428.0,0.413192]
[1732547743563,0.00310161,95429.0,95428.0,0.413192]
[1732547745074,0.00310161,95429.0,95428.0,0.41326874]
[1732547745737,0.48472,95447.0,95446.0,0.052383]
[1732547745972,0.48472,95447.0,95446.0,0.413183]
[1732547746161,0.3608,95468.0,95446.0,0.3608]
[1732547746372,0.48464,95467.0,95454.0,0.3608]
[1732547746562,0.537011,95467.0,95454.0,0.3608]
[1732547746878,0.537011,95467.0,95446.0,0.3608]
[1732547746879,0.052379,95454.0,95429.0,0.3608]
[1732547747084,0.3608,95462.0,95445.0,0.3608]
[1732547747259,8.68e-05,95466.0,95445.0,0.3608]
[1732547747458,0.7847268,95466.0,95445.0,0.3608]
[1732547747665,0.3608,95455.0,95445.0,0.3608]
[1732547747865,0.4853668,95466.0,95445.0,0.3608]
[1732547748068,0.4847268,95466.0,95457.0,0.052376]
[1732547748276,0.4847268,95466.0,95455.0,0.052377]
[1732547748594,0.4847268,95466.0,95448.0,0.052381]
[1732547748920,0.4847268,95466.0,95433.0,0.3608]
[1732547748921,0.3608,95455.0,95441.0,0.3608]
[1732547749297,0.48528681,95466.0,95441.0,0.3608]
[1732547749575,0.48528681,95466.0,95456.0,0.052377]
[1732547749576,0.4847268,95466.0,95456.0,0.052377]
[1732547749772,0.3608,95462.0,95456.0,0.052377]
[1732547749969,0.3608,95462.0,95441.0,0.3608]
[1732547750178,0.3608,95462.0,95455.0,0.052377]
[1732547750375,0.48528681,95466.0,95462.0,0.052373]
[1732547750571,0.48528681,95466.0,95451.0,0.3608]
[1732547750572,0.4847268,95466.0,95464.0,0.052372]
[1732547750765,0.4847268,95466.0,95451.0,0.3608]
[1732547750969,0.4847268,95466.0,95441.0,0.3608]
[1732547751272,0.3608,95463.0,95441.0,0.3608]
[1732547752096,0.3608,95455.0,95441.0,0.3608]
[1732547752404,0.66136001,95463.0,95441.0,0.3608]
[1732547752571,0.3608,95454.0,95441.0,0.3608]
[1732547752789,0.3608,95454.0,95428.0,0.37087674]
[1732547752790,0.3608,95445.0,95428.0,0.37087674]
[1732547753472,0.3608,95454.0,95436.0,0.3608]
[1732547753670,0.3608,95454.0,95444.0,0.3608]
[1732547753886,0.3608,95460.0,95444.0,0.3608]
[1732547754067,0.48452,95459.0,95444.0,0.3608]
[1732547754270,0.3608,95454.0,95444.0,0.3608]
[1732547754469,0.48452,95459.0,95444.0,0.3608]
[1732547754782,0.48508001,95459.0,95444.0,0.3608]
[1732547755169,0.48452,95459.0,95444.0,0.3608]
[1732547755369,0.3608,95454.0,95444.0,0.3608]
[1732547755773,0.48452,95459.0,95444.0,0.3608]
[1732547756175,0.3608,95449.0,95430.0,0.02331946]
[1732547756375,0.3608,95449.0,95428.0,0.01007674]
[1732547756376,0.003,95445.0,95428.0,0.01007674]
[1732547756681,0.3608,95433.0,95428.0,0.01007674]
[1732547756796,0.3608,95433.0,95400.0,0.3750994]
[1732547756797,0.3608,95429.0,95409.0,0.30920728]
[1732547757092,0.3608,95415.0,95409.0,0.30920728]
[1732547757294,0.00010318,95432.0,95414.0,0.3608]
[1732547757574,0.00010318,95432.0,95423.0,0.3608]
[1732547757781,0.00010318,95432.0,95401.0,0.24971955]
[1732547757967,0.3608,95427.0,95400.0,0.55110332]
[1732547758179,0.00010318,95432.0,95412.0,0.3608]
[1732547759284,0.3608,95428.0,95400.0,0.80082287]
[1732547759480,0.00010318,95432.0,95421.0,0.3608]
[1732547759797,0.00010318,95432.0,95400.0,0.55110332]
[1732547759798,0.00010318,95432.0,95408.0,0.24971955]
[1732547760080,0.00010318,95432.0,95408.0,0.3608]
[1732547760081,0.3608,95428.0,95408.0,0.3608]
[1732547760279,0.30010318,95432.0,95420.0,0.3608]
[1732547760280,0.00010318,95432.0,95420.0,0.3608]
[1732547760783,0.00010318,95432.0,95431.0,0.3608]
[1732547762386,0.00310318,95432.0,95431.0,0.3608]
[1732547762582,0.00838,95433.0,95431.0,0.61094199]
[1732547762888,0.00838,95433.0,95431.0,0.3608]
[1732547763079,0.00838,95433.0,95432.0,0.56450199]
[1732547763276,0.00838,95433.0,95431.0,0.3608]
[1732547763277,0.00630082,95433.0,95431.0,0.38419158]
[1732547763683,0.00012903,95432.0,95431.0,0.38419158]
[1732547764483,0.00630082,95433.0,95431.0,0.38419158]
[1732547764678,0.00630082,95433.0,95432.0,0.25339514]
[1732547764995,0.00630082,95433.0,95432.0,0.00327696]
[1732547765397,0.3608,95455.0,95432.0,0.00327696]
[1732547765684,0.48452,95456.0,95448.0,0.3608]
[1732547765876,0.00011003,95455.0,95448.0,0.3608]
[1732547767692,0.00311003,95455.0,95448.0,0.3608]
[1732547768592,0.00311003,95455.0,95449.0,0.25011226]
[1732547769090,0.00311003,95455.0,95448.0,0.61091226]
[1732547769402,0.00311003,95455.0,95454.0,0.25011226]
[1732547769685,0.00311003,95455.0,95454.0,0.00851888]
[1732547769898,0.67819003,95455.0,95454.0,0.00851888]
[1732547770083,0.00311003,95455.0,95450.0,0.25067434]
[1732547770307,0.00311003,95455.0,95439.0,0.7358994]
[1732547770308,0.00311003,95455.0,95451.0,0.25395116]
[1732547770591,0.00311003,95455.0,95439.0,0.36204]
[1732547770592,0.00311003,95455.0,95448.0,0.25067434]
[1732547770896,0.00311003,95455.0,95449.0,0.00327685]
[1732547771187,0.00311003,95455.0,95451.0,0.30920728]
[1732547771383,0.00311003,95455.0,95452.0,0.00327685]
[1732547771589,0.00311003,95455.0,95453.0,0.00851939]
[1732547771779,0.00311003,95455.0,95454.0,0.00851939]
[1732547772794,0.00011003,95455.0,95454.0,0.32864578]
[1732547772987,0.00311003,95455.0,95454.0,0.01507237]
[1732547773191,0.00311003,95455.0,95454.0,0.32864578]
[1732547773391,0.38177312,95491.0,95454.0,1.15785274]
[1732547773392,0.3608,95491.0,95454.0,1.15785274]
[1732547773693,0.6608,95491.0,95466.0,0.25080588]
[1732547773897,0.3608,95481.0,95469.0,0.31350735]
[1732547774087,0.6608,95491.0,95471.0,0.25080588]
[1732547774291,0.3608,95481.0,95474.0,0.25080588]
[1732547774517,0.3608,95481.0,95475.0,0.00524124]
[1732547774766,0.3608,95481.0,95467.0,0.67430735]
[1732547774767,0.3608,95481.0,95477.0,0.00094029]
[1732547774989,0.3608,95481.0,95478.0,0.00524115]
[1732547775194,0.3608,95481.0,95473.0,0.25080588]
[1732547775195,0.3608,95481.0,95475.0,0.00094029]
[1732547775392,0.3608,95481.0,95474.0,0.00094029]
[1732547775598,0.00011108,95490.0,95476.0,0.00094029]